fUSD/lending_fUSD_20241117
["ID","MTS","AMOUNT","RATE_DAILY","PERIOD"]
[342432041,1731856257665,500.0,0.00025,60]
[342432042,1731856257748,500.0,0.00025,60]
[342432043,1731856257920,500.0,0.00025,60]
[342432044,1731856258433,515.639607,0.00025,60]
[342432045,1731856263280,500.0,0.00025,60]
[342432046,1731856266585,500.0,0.00025,60]
[342432047,1731856306231,305.07488412,0.00025,60]
[342432048,1731856315389,500.0,0.00025,60]
[342432049,1731856342861,289.1605,8.421e-05,2]
[342432050,1731856343626,500.0,0.00025,60]
[342432051,1731856343874,500.0,0.00025,60]
[342432052,1731856348651,425.01828748,0.00025,60]
[342432053,1731856357564,500.0,0.00025,60]
[342432054,1731856357839,500.0,0.00025,60]
[342432055,1731856362696,500.0,0.00025,60]
[342432056,1731856362957,500.0,0.00025,60]
[342432057,1731856363224,516.47021345,0.00025,60]
[342432058,1731856363595,500.0,0.00025,60]
[342432059,1731856368279,506.89769299,0.00025,60]
[342432060,1731856378153,505.06480788,0.00025,60]
[342432061,1731856384378,502.22761942,0.00025,60]
[342432062,1731856385947,502.46190005,0.00025,60]
[342432063,1731856388219,517.04780073,0.00025,60]
[342432064,1731856393392,500.0,0.00025,60]
[342432065,1731856395427,500.0,0.00025,60]
[342432066,1731856397466,500.0,0.00024999,120]
[342432067,1731856399645,500.0,0.00025,60]
[342432068,1731856399920,166.71738401,0.00025,60]
[342432069,1731856400128,519.31167461,0.00025,60]
[342432070,1731856404068,558.10474886,0.00025,60]
[342432071,1731856405963,502.99702629,0.00025,60]
[342432072,1731856408648,247.96376,0.00024999,120]
[342432073,1731856410005,500.0,0.00025,60]
[342432074,1731856412575,573.28434912,0.00025,60]
[342432075,1731856412703,200.0,0.00024999,120]
[342432076,1731856414684,515.36404668,0.00025,60]
[342432077,1731856416593,517.55101143,0.00025,60]
[342432078,1731856419030,575.83467575,0.00025,60]
[342432079,1731856426267,500.0,0.00025,60]
[342432080,1731856426667,500.0,0.00025,60]
[342432081,1731856426919,500.0,0.00025,60]
[342432082,1731856427177,171.16,0.00025,60]
[342432083,1731856431695,513.68843365,0.00025,60]
[342432084,1731856465679,529.35595833,0.00025,60]
[342432085,1731856471892,545.78407554,0.00025,60]
[342432086,1731856474172,521.3505862,0.00025,60]
[342432087,1731856484723,500.0,0.00025,60]
[342432088,1731856495608,520.30139524,0.00025,60]
[342432090,1731856503947,515.47563882,0.00025,60]
[342432091,1731856520720,500.0,0.00025,60]
[342432092,1731856521015,500.0,0.00025,60]
[342432093,1731856521289,500.0,0.00025,60]
[342432094,1731856521548,500.0,0.00025,60]
[342432095,1731856521974,500.0,0.00025,60]
[342432096,1731856522261,500.0,0.00025,60]
[342432097,1731856522530,163.36641063,0.00025,60]
[342432098,1731856527536,500.0,0.00025,60]
[342432099,1731856527780,500.0,0.00025,60]
[342432100,1731856528050,529.90015124,0.00025,60]
[342432101,1731856528395,518.97053162,0.00025,60]
[342432102,1731856534249,508.09531073,0.00025,60]
[342432103,1731856539323,500.0,0.00025,60]
[342432104,1731856539586,500.0,0.00025,60]
[342432105,1731856540980,512.15589394,0.00025,60]
[342432106,1731856542527,517.10432748,0.00025,60]
[342432107,1731856547804,500.0,0.00025,60]
[342432108,1731856548068,524.18548414,0.00025,60]
[342432109,1731856550158,526.43936951,0.00025,60]
[342432110,1731856550319,540.09650121,0.00025,60]
[342432111,1731856551518,500.0,0.00025,60]
[342432112,1731856551781,500.0,0.00025,60]
[342432113,1731856558736,500.0,0.00025,60]
[342432114,1731856558984,500.0,0.00025,60]
[342432115,1731856559281,500.0,0.00025,60]
[342432116,1731856559550,500.0,0.00025,60]
[342432117,1731856559825,500.0,0.00025,60]
[342432118,1731856560103,500.0,0.00025,60]
[342432119,1731856560365,500.0,0.00025,60]
[342432120,1731856560639,500.0,0.00025,60]
[342432121,1731856560906,500.0,0.00025,60]
[342432122,1731856561412,500.0,0.00025,60]
[342432123,1731856561727,500.0,0.00025,60]
[342432124,1731856562043,486.2036,0.00025,60]
[342432125,1731856572014,500.0,0.00025,60]
[342432126,1731856582463,500.0,0.00025,60]
[342432127,1731856582759,500.0,0.00025,60]
[342432128,1731856584656,400.49222425,0.00025,60]
[342432129,1731856688177,319.70263525,0.00025,60]
[342432130,1731856693557,160.9,8.219e-05,2]
[342432131,1731856696746,500.0,0.00025,60]
[342432132,1731856698177,500.0,0.00025,60]
[342432133,1731856698509,615.86,0.00025,60]
[342432134,1731856723717,526.09927607,0.00025,60]
[342432135,1731856727598,500.0,0.00025,60]
[342432136,1731856727870,197.18390868,0.00025,60]
[342432137,1731856738173,250.0,8.219e-05,2]
[342432138,1731856786716,2367.5,8.219e-05,2]
[342432139,1731856799623,500.0,0.00025,60]
[342432140,1731856799881,500.0,0.00025,60]
[342432141,1731856800138,500.0,0.00025,60]
[342432142,1731856880131,162.26,8.219e-05,2]
[342432143,1731856913318,23900.0,8.143e-05,2]
[342432144,1731856924562,507.16196183,0.00025,60]
[342432145,1731856925604,300.0,0.00025,60]
[342432146,1731856937008,500.0,0.00025,60]
[342432147,1731856937272,500.0,0.00025,60]
[342432148,1731856937564,500.0,0.00025,60]
[342432149,1731856938192,175.7295828,0.00025,60]
[342432150,1731856958489,250.0,8.219e-05,2]
[342432151,1731856965746,1399.46,8.219e-05,2]
[342432152,1731856982954,500.0,0.00025,60]
[342432153,1731856983458,500.0,0.00025,60]
[342432154,1731856983532,500.0,0.00025,60]
[342432155,1731856983733,500.0,0.00025,60]
[342432156,1731856984008,500.0,0.00025,60]
[342432157,1731856984301,500.0,0.00025,60]
[342432158,1731856984779,500.0,0.00025,60]
[342432159,1731856985057,500.0,0.00025,60]
[342432160,1731856985320,500.0,0.00025,60]
[342432161,1731856985625,500.0,0.00025,60]
[342432162,1731856985884,500.0,0.00025,60]
[342432163,1731856986158,500.0,0.00025,60]
[342432164,1731856986419,500.0,0.00025,60]
[342432165,1731856986689,500.0,0.00025,60]
[342432166,1731856986955,500.0,0.00025,60]
[342432167,1731856987214,500.0,0.00025,60]
[342432168,1731856987464,500.0,0.00025,60]
[342432169,1731856987922,500.0,0.00025,60]
[342432170,1731856988033,500.0,0.00025,60]
[342432171,1731856988298,500.0,0.00025,60]
[342432172,1731856988593,500.0,0.00025,60]
[342432173,1731856988845,500.0,0.00025,60]
[342432174,1731856989083,500.0,0.00025,60]
[342432175,1731856989346,461.18860187,0.00025,60]
[342432176,1731857026375,500.86489695,0.00025,60]
[342432177,1731857049495,7447.9,8.219e-05,2]
[342432178,1731857068273,161.81,8.162e-05,2]
[342432179,1731857128099,250.0,8.151e-05,2]
[342432180,1731857139878,500.0,8.074e-05,2]
[342432182,1731857266134,2706.48,8.175e-05,2]
[342432193,1731857350721,1925.45,8.164e-05,2]
[342432194,1731857351125,1000.0,8.219e-05,2]
[342432195,1731857354454,3466.75,8.5e-05,2]
[342432212,1731857410933,423.81,8.169e-05,2]
[342432219,1731857431926,-457.81,8.68e-05,2]
[342432220,1731857431936,-1500.0,8.68e-05,2]
[342432221,1731857431946,-457.81,8.682e-05,2]
[342432222,1731857431955,-457.81,8.685e-05,2]
[342432223,1731857431965,-457.81,8.687e-05,2]
[342432224,1731857431974,-457.81,8.689e-05,2]
[342432225,1731857431983,-446.756527,8.691e-05,2]
[342432226,1731857431995,-11.053473,8.691e-05,2]
[342432227,1731857432007,-457.81,8.694e-05,2]
[342432228,1731857432017,-457.81,8.696e-05,2]
[342432229,1731857432026,-457.81,8.698e-05,2]
[342432230,1731857432036,-457.81,8.701e-05,2]
[342432231,1731857432046,-457.81,8.703e-05,2]
[342432232,1731857432055,-457.81,8.705e-05,2]
[342432233,1731857432065,-457.81,8.707e-05,2]
[342432234,1731857432074,-457.81,8.71e-05,2]
[342432235,1731857432084,-457.81,8.712e-05,2]
[342432236,1731857432094,-457.81,8.714e-05,2]
[342432237,1731857432102,-457.81,8.716e-05,2]
[342432238,1731857432112,-457.81,8.719e-05,2]
[342432239,1731857432121,-457.81,8.721e-05,2]
[342432240,1731857432131,-457.81,8.723e-05,2]
[342432241,1731857432141,-376.19,8.741e-05,2]
[342432242,1731857432150,-150.0,9e-05,2]
[342432243,1731857432160,-500.0,9e-05,3]
[342432244,1731857432169,-164.51,9.035e-05,2]
[342432245,1731857432178,-938.76,9.041e-05,2]
[342432246,1731857432187,-1526.6,9.041e-05,2]
[342432247,1731857432197,-1000.0,9.1e-05,3]
[342432248,1731857432206,-433.3,9.178e-05,2]
[342432249,1731857432217,-362.32,9.178e-05,2]
[342432250,1731857432227,-968.5,9.178e-05,2]
[342432251,1731857432236,-433.3,9.178e-05,2]
[342432252,1731857432246,-968.5,9.178e-05,2]
[342432253,1731857432255,-433.09,9.178e-05,2]
[342432254,1731857432265,-968.5,9.178e-05,2]
[342432255,1731857432274,-968.5,9.178e-05,2]
[342432256,1731857432283,-968.5,9.178e-05,2]
[342432257,1731857432293,-968.5,9.178e-05,2]
[342432258,1731857432302,-968.5,9.178e-05,2]
[342432259,1731857432311,-968.5,9.178e-05,2]
[342432260,1731857432320,-968.5,9.178e-05,2]
[342432261,1731857432330,-300.0,9.178e-05,2]
[342432262,1731857432340,-300.0,9.178e-05,2]
[342432263,1731857432351,-864.01,9.178e-05,2]
[342432264,1731857432360,-718.84,9.178e-05,2]
[342432265,1731857432369,-968.5,9.178e-05,2]
[342432266,1731857432379,-968.5,9.178e-05,2]
[342432267,1731857432390,-968.5,9.178e-05,2]
[342432268,1731857432399,-968.5,9.178e-05,2]
[342432269,1731857432408,-968.5,9.178e-05,2]
[342432270,1731857432418,-968.5,9.178e-05,2]
[342432271,1731857432427,-968.5,9.178e-05,2]
[342432272,1731857432436,-968.5,9.178e-05,2]
[342432274,1731857432445,-968.5,9.178e-05,2]
[342432276,1731857432455,-968.5,9.178e-05,2]
[342432279,1731857432466,-968.5,9.178e-05,2]
[342432281,1731857432477,-534.38,9.178e-05,2]
[342432284,1731857432486,-968.5,9.178e-05,2]
[342432286,1731857432495,-968.5,9.178e-05,2]
[342432288,1731857432505,-323.02979908,9.19e-05,2]
[342432290,1731857432514,-423.81,9.19e-05,2]
[342432293,1731857432523,-101040.108,9.2e-05,2]
[342432294,1731857432533,-1500.0,9.2e-05,3]
[342432297,1731857432542,-1000.0,9.247e-05,2]
[342432298,1731857432551,-2000.0,9.3e-05,3]
[342432299,1731857432561,-2600.0,9.4e-05,3]
[342432300,1731857432570,-379.15,9.452e-05,2]
[342432301,1731857432579,-500.0,9.5e-05,3]
[342432302,1731857432588,-150.0,9.539e-05,2]
[342432303,1731857432597,-200.0,9.6e-05,2]
[342432304,1731857432608,-200.0,9.6e-05,2]
[342432305,1731857432617,-500.0,9.6e-05,3]
[342432306,1731857432837,-500.0,9.7e-05,3]
[342432307,1731857432847,-500.0,9.8e-05,3]
[342432308,1731857432857,-376.19,9.834e-05,2]
[342432309,1731857432867,-1000.0,9.9e-05,2]
[342432310,1731857432877,-5000.0,9.9e-05,2]
[342432311,1731857432887,-36165.1869,9.9e-05,2]
[342432312,1731857432897,-71807.9734,9.9e-05,2]
[342432313,1731857432906,-17030.99999901,9.9e-05,2]
[342432314,1731857432915,-800.0,9.9e-05,3]
[342432315,1731857432925,-1006.0,9.9e-05,2]
[342432316,1731857432934,-195.0,9.9e-05,2]
[342432317,1731857432943,-503.09029277,9.973e-05,2]
[342432318,1731857432952,-500.0,9.973e-05,2]
[342432319,1731857432961,-500.0,9.973e-05,2]
[342432320,1731857432970,-2445.317,9.99e-05,2]
[342432321,1731857432979,-523.58935758,9.99e-05,2]
[342432322,1731857432989,-523.58935755,9.99e-05,2]
[342432323,1731857432999,-523.58935755,9.99e-05,2]
[342432324,1731857433012,-523.58935755,9.99e-05,2]
[342432325,1731857433021,-523.58935755,9.99e-05,2]
[342432326,1731857433030,-523.58935755,9.99e-05,2]
[342432327,1731857433040,-523.58935755,9.99e-05,2]
[342432328,1731857433049,-999.0726346,9.992e-05,2]
[342432329,1731857433058,-8657.8047643,9.992e-05,2]
[342432330,1731857433067,-842.8230289,9.993e-05,2]
[342432331,1731857433077,-686.5734232,9.993e-05,2]
[342432332,1731857433088,-8080.61778,9.993e-05,2]
[342432333,1731857433097,-7503.4307957,9.993e-05,2]
[342432334,1731857433106,-15785.41,9.999e-05,2]
[342432335,1731857433115,-5787.62299873,0.0001,2]
[342432336,1731857433124,-106426.56752815,0.0001,2]
[342432337,1731857433137,-80824.41086345,0.0001,2]
[342432338,1731857433152,-49488.94022462,0.0001,2]
[342432339,1731857433162,-243.292,0.0001,2]
[342432340,1731857433172,-150.0,0.0001,2]
[342432341,1731857433181,-695.718,0.0001,2]
[342432342,1731857433190,-422449.65248449,0.0001,2]
[342432343,1731857433198,-41705.46159928,0.0001,2]
[342432344,1731857433217,-3304.12446288,0.0001,2]
[342432345,1731857433229,-4109.68893146,0.0001,2]
[342432346,1731857437754,-523.58935755,9.99e-05,2]
[342432347,1731857437764,-310400.51799044,0.0001,2]
[342432348,1731857437807,-5376337.21729228,0.0001,2]
[342432349,1731857437816,-1000.0,0.0001,2]
[342432350,1731857437826,-1000.0,0.0001,2]
[342432351,1731857437835,-700595.56776706,0.0001,2]
[342432352,1731857438063,-1993.41287287,0.0001,2]
[342432353,1731857438075,-8987.0,0.0001,2]
[342432354,1731857438089,-2267.27999998,0.0001,2]
[342432355,1731857438113,-274.176,0.0001,2]
[342432356,1731857438165,-3297.43649468,0.0001,2]
[342432430,1731857439793,-405.02824387,9.99e-05,2]
[342432431,1731857439870,-118.56111368,9.99e-05,2]
[342432432,1731857439880,-873.20230727,0.0001,2]
[342432433,1731857439893,-332.54659203,0.0001,2]
[342432434,1731857439933,-45135.8,0.0001,2]
[342432435,1731857439994,-422.25836631,0.0001,2]
[342432436,1731857440007,-932.8035808,0.0001,2]
[342432437,1731857440054,-303.58321774,0.0001,2]
[342432438,1731857440066,-3443.25047692,0.0001,2]
[342432439,1731857440118,-1938.23420954,0.0001,2]
[342432440,1731857440129,-5765.94040944,0.0001,2]
[342432441,1731857440184,-1559.80161734,0.0001,2]
[342432453,1731857442797,-541.80621856,0.0001,2]
[342432455,1731857442850,-449.242,0.0001,2]
[342432456,1731857442862,-4426.88633819,0.0001,2]
[342432457,1731857442874,-9059.5,0.0001,2]
[342432458,1731857442886,-280.6875699,0.0001,2]
[342432459,1731857442899,-17851.78842741,0.0001,2]
[342432460,1731857443020,-647.03681964,0.0001,2]
[342432461,1731857443031,-2592.62386085,0.0001,2]
[342432462,1731857443042,-4521.3,0.0001,2]
[342432463,1731857443055,-3300.5,0.0001,2]
[342432464,1731857443075,-13057.32436075,0.0001,2]
[342432465,1731857443123,-17701.14986999,0.0001,2]
[342432472,1731857443231,-591.2000005,0.0001,2]
[342432474,1731857443242,-1372.5442262,0.0001,2]
[342432477,1731857443253,-501.35497487,0.0001,2]
[342432576,1731857445837,-968.5,9.178e-05,2]
[342432577,1731857445846,-1910.75580222,0.0001,2]
[342432578,1731857445857,-546.677978,0.0001,2]
[342432579,1731857445943,-45300.0,0.0001,2]
[342432580,1731857445954,-885.5280694,0.0001,2]
[342432581,1731857445965,-647.9176554,0.0001,2]
[342432582,1731857445996,-2748.588,0.0001,2]
[342432583,1731857446158,-2437.27193869,0.0001,2]
[342432584,1731857446170,-4529.585,0.0001,2]
[342432585,1731857446186,-3287.34103081,0.0001,2]
[342432589,1731857570661,500.0,0.00025,60]
[342432590,1731857570919,500.0,0.00025,60]
[342432591,1731857596373,500.0,0.00024705,120]
[342432592,1731857608320,200.0,0.00024825,120]
[342432593,1731857628260,2249.12,8.219e-05,2]
[342432596,1731857932481,2000.0,0.00025,60]
[342432597,1731857958868,500.0,0.00025,60]
[342432598,1731857959481,500.0,0.00025,60]
[342432599,1731857959764,500.0,0.00025,60]
[342432600,1731857960049,500.0,0.00025,60]
[342432601,1731857960317,500.0,0.00025,60]
[342432602,1731857960589,518.6348,0.00025,60]
[342432614,1731858193053,222.0,0.00025,60]
[342432615,1731858197858,500.0,0.00025,120]
[342432616,1731858209062,200.0,0.00025,120]
[342432617,1731858550104,2136.66,8.219e-05,2]
[342432618,1731858632005,-250.0,8.621e-05,2]
[342432619,1731858632015,-699.73,8.621e-05,2]
[342432620,1731858632024,-320.0,8.726e-05,2]
[342432621,1731858632036,-1000.0,8.757e-05,2]
[342432622,1731858632046,-250.0,8.768e-05,2]
[342432624,1731858632056,-250.0,8.815e-05,2]
[342432625,1731858632065,-8190.26999978,8.815e-05,2]
[342432626,1731858632140,-3736.59607413,8.815e-05,2]
[342432627,1731858632155,-1044.35100001,8.815e-05,2]
[342432628,1731858632166,-510.42204117,8.815e-05,2]
[342432629,1731858632264,-9000.0,8.815e-05,2]
[342432630,1731858632374,-1418.36088491,8.815e-05,2]
[342432632,1731858632385,-968.5,8.82e-05,2]
[342432633,1731858632397,-595.12,8.82e-05,2]
[342432634,1731858632409,-400.0,9e-05,3]
[342432635,1731858632419,-150.0,9.068e-05,2]
[342432636,1731858632428,-150.0,9.069e-05,2]
[342432637,1731858632436,-968.5,9.07e-05,2]
[342432638,1731858632446,-900.0,9.1e-05,3]
[342432639,1731858632457,-1300.0,9.2e-05,3]
[342432640,1731858632466,-1800.0,9.3e-05,3]
[342432641,1731858632475,-2200.0,9.4e-05,3]
[342432642,1731858632484,-150.0,9.475e-05,2]
[342432643,1731858632493,-1500.0,9.481e-05,2]
[342432644,1731858632503,-29471.96429661,9.5e-05,2]
[342432645,1731858632514,-13162.09290339,9.5e-05,2]
[342432646,1731858632523,-400.0,9.5e-05,3]
[342432647,1731858632532,-133.60313083,9.6e-05,3]
[342432648,1731858632545,-266.39686917,9.6e-05,3]
[342432649,1731858632555,-470.51458051,9.606e-05,2]
[342432655,1731858638166,-14578.12288679,9.606e-05,2]
[342432656,1731858638178,-3673.3625327,9.606e-05,2]
[342432657,1731858638189,-400.0,9.7e-05,3]
[342432658,1731858638199,-400.0,9.8e-05,3]
[342432659,1731858638209,-320.0,9.817e-05,2]
[342432660,1731858638218,-1000.0,9.852e-05,2]
[342432661,1731858638229,-782.7587,9.9e-05,2]
[342432662,1731858638238,-3135.2929,9.9e-05,2]
[342432663,1731858638247,-800.0,9.9e-05,3]
[342432664,1731858638256,-432.90379701,9.973e-05,2]
[342432665,1731858638268,-500.0,9.973e-05,2]
[342432666,1731858638279,-1956.253,9.99e-05,2]
[342432667,1731858638288,-5284.3199973,9.993e-05,2]
[342432668,1731858638297,-187.0371059,9.993e-05,2]
[342432669,1731858638306,-31802.8297481,0.0001,2]
[342432670,1731858638317,-850.81000002,0.0001,2]
[342432671,1731858638413,-192249.28293729,0.0001,2]
[342432672,1731858638424,-5498.2418488,0.0001,2]
[342432673,1731858638434,-5881185.26027325,0.0001,2]
[342432674,1731858638512,-1697.8306,0.0001,2]
[342432696,1731858640102,-1438.89368145,0.0001,2]
[342432697,1731858640115,-4125.78510001,0.0001,2]
[342432698,1731858640127,-2333.49999996,0.0001,2]
[342432699,1731858640139,-1575.15889195,0.0001,2]
[342432700,1731858640256,-1284.68353,0.0001,2]
[342432701,1731858640268,-901.4202829,0.0001,2]
[342432702,1731858640280,-309.984,0.0001,2]
[342432703,1731858640292,-1521.93372779,0.0001,2]
[342432704,1731858640303,-1824.29585,0.0001,2]
[342432705,1731858640314,-7239.00147218,0.0001,2]
[342432710,1731858644327,-710.21605761,0.0001,2]
[342432711,1731858644338,-906.17357973,0.0001,2]
[342432712,1731858644349,-1511.44721335,0.0001,2]
[342432713,1731858644360,-54000.0,0.0001,2]
[342432714,1731858644372,-594197.5,0.0001,2]
[342432715,1731858644434,-48510.98194249,0.0001,2]
[342432716,1731858644544,-987.83439998,0.0001,2]
[342432717,1731858644556,-5867.31357,0.0001,2]
[342432718,1731858644567,-608.2999995,0.0001,2]
[342432719,1731858644578,-1341.7000005,0.0001,2]
[342432720,1731858644589,-3628.61000001,0.0001,2]
[342432721,1731858644600,-648.0,0.0001,2]
[342432727,1731858646058,-64223.91263271,0.0001,2]
[342432728,1731858646162,-331.245,0.0001,2]
[342432729,1731858646253,-544.254,0.0001,2]
[342432730,1731858646265,-520.66332462,0.0001,2]
[342432731,1731858646276,-45292.74715485,0.0001,2]
[342432732,1731858646342,-500.0,0.0001,2]
[342432904,1731858750772,549.95,0.00025,60]
[342432905,1731858806864,200.0,0.00024915,120]
[342432906,1731859005346,532.89,0.00025,60]
[342432907,1731859014158,500.0,0.00023,120]
[342432908,1731859336222,2029.82,8.219e-05,2]
[342432909,1731859397079,500.0,0.00024845,120]
[342432910,1731859408629,200.0,0.00024829,120]
[342432913,1731859501695,2000.0,0.00025,60]
[342432914,1731859546574,2026.069195,0.00025,60]
[342432915,1731859583077,2000.0,0.00025,60]
[342432917,1731859653508,557.7,0.00025,60]
[342432918,1731859715219,1770.11,8.435e-05,2]
[342432919,1731859744475,161.69,8.44e-05,2]
[342432922,1731859763735,500.0,0.00025,60]
[342432923,1731859763994,500.0,0.00025,60]
[342432924,1731859764250,500.0,0.00025,60]
[342432925,1731859764507,500.0,0.00025,60]
[342432926,1731859764923,500.0,0.00025,60]
[342432927,1731859765180,342.92298636,0.00025,60]
[342432928,1731859772254,250.0,8.442e-05,2]
[342432935,1731859832114,-154.21,8.688e-05,2]
[342432936,1731859832125,-1527.98,8.69e-05,2]
[342432937,1731859832135,-34.48116708,8.69e-05,2]
[342432938,1731859832167,-119.72883292,8.69e-05,2]
[342432939,1731859832177,-154.21,8.692e-05,2]
[342432940,1731859832187,-154.21,8.695e-05,2]
[342432941,1731859832197,-154.21,8.697e-05,2]
[342432942,1731859832208,-154.21,8.7e-05,2]
[342432943,1731859832218,-154.21,8.702e-05,2]
[342432944,1731859832227,-154.21,8.704e-05,2]
[342432945,1731859832237,-154.21,8.707e-05,2]
[342432946,1731859832246,-154.21,8.709e-05,2]
[342432947,1731859832256,-154.21,8.712e-05,2]
[342432948,1731859832267,-154.21,8.714e-05,2]
[342432949,1731859832283,-154.21,8.716e-05,2]
[342432950,1731859832294,-154.21,8.719e-05,2]
[342432951,1731859832304,-154.21,8.721e-05,2]
[342432952,1731859832314,-154.21,8.724e-05,2]
[342432953,1731859832323,-154.21,8.726e-05,2]
[342432954,1731859832334,-154.21,8.729e-05,2]
[342432955,1731859832343,-250.0,8.73e-05,2]
[342432956,1731859832353,-154.21,8.731e-05,2]
[342432957,1731859832363,-3129.65,8.734e-05,2]
[342432958,1731859832373,-254.29,8.75e-05,2]
[342432959,1731859832382,-250.0,8.769e-05,2]
[342432960,1731859832392,-300.0,8.815e-05,2]
[342432961,1731859832401,-150.0,8.815e-05,2]
[342432962,1731859832411,-1613.31926164,8.816e-05,2]
[342432963,1731859832431,-795.92449454,8.816e-05,2]
[342432964,1731859832442,-423.37624382,8.816e-05,2]
[342432965,1731859832454,-155.76752852,8.816e-05,2]
[342432966,1731859832464,-849.15916818,8.825e-05,2]
[342432967,1731859832476,-150.84083182,8.825e-05,2]
[342432968,1731859832486,-144.60731002,8.827e-05,2]
[342432969,1731859832499,-1516.65763753,8.827e-05,2]
[342432970,1731859832511,-2051.230272,8.827e-05,2]
[342432971,1731859832522,-20187.50478045,8.827e-05,2]
[342432972,1731859832533,-353.71,8.872e-05,2]
[342432973,1731859832542,-300.0,9e-05,3]
[342432974,1731859832552,-600.0,9.1e-05,3]
[342432975,1731859832561,-1000.0,9.2e-05,3]
[342432976,1731859832571,-1300.0,9.3e-05,3]
[342432977,1731859832580,-1600.0,9.4e-05,3]
[342432978,1731859832590,-300.0,9.5e-05,3]
[342432979,1731859832599,-150.0,9.548e-05,2]
[342432980,1731859832609,-190.551981,9.585e-05,2]
[342432981,1731859832618,-300.0,9.6e-05,3]
[342432982,1731859832628,-824.52,9.67e-05,2]
[342432983,1731859832638,-8667.25,9.67e-05,2]
[342432984,1731859832648,-678.54,9.67e-05,2]
[342432985,1731859832657,-1502.14,9.67e-05,2]
[342432986,1731859832668,-150.99,9.67e-05,2]
[342432987,1731859832677,-499.99,9.67e-05,2]
[342432988,1731859832687,-1340.57,9.67e-05,2]
[342432990,1731859832697,-299.99,9.67e-05,2]
[342432991,1731859832707,-6145.75,9.67e-05,2]
[342432992,1731859832717,-189.99,9.67e-05,2]
[342432993,1731859832730,-255.0,9.697e-05,2]
[342432994,1731859832740,-300.0,9.7e-05,3]
[342432995,1731859832749,-150.0,9.738e-05,2]
[342432996,1731859832760,-150.0,9.74e-05,2]
[342432997,1731859832771,-150.0,9.742e-05,2]
[342432998,1731859832780,-150.0,9.744e-05,2]
[342432999,1731859832790,-1500.0,9.748e-05,2]
[342433000,1731859832802,-150.0,9.761e-05,2]
[342433001,1731859832814,-150.0,9.764e-05,2]
[342433002,1731859832823,-150.0,9.772e-05,2]
[342433003,1731859832834,-150.0,9.777e-05,2]
[342433004,1731859832843,-150.0,9.779e-05,2]
[342433005,1731859832853,-1000.0,9.782e-05,2]
[342433006,1731859832863,-1500.0,9.783e-05,2]
[342433007,1731859832873,-150.0,9.788e-05,2]
[342433008,1731859832883,-150.0,9.792e-05,2]
[342433009,1731859832893,-1500.0,9.793e-05,2]
[342433010,1731859832903,-150.0,9.796e-05,2]
[342433011,1731859832913,-150.0,9.796e-05,2]
[342433012,1731859832923,-150.0,9.799e-05,2]
[342433013,1731859832933,-2021.0115,9.8e-05,2]
[342433014,1731859832942,-216.8937,9.8e-05,2]
[342433015,1731859832952,-7343.5541,9.8e-05,2]
[342433016,1731859832962,-30898.2086,9.8e-05,2]